[Event "DVM U10 2019"]
[Site "Magedburg"]
[Date "2019.12.29"]
[Round "7"]
[White "Fietz, Nils"]
[Black "Ermitsch, Magnus"]
[Result "1/2-1/2"]
[ECO "B48"]
[WhiteElo "1437"]
[BlackElo "1887"]
[Annotator "NA"]
[PlyCount "61"]
[EventDate "2019.12.27"]
[EventType "team-tourn"]
[EventRounds "7"]
[EventCountry "GER"]
[SourceTitle "playchess.com"]
[Source "ChessBase"]
[SourceQuality "1"]
[TimeControl "3300+5"]

1. e4 {[%emt 0:00:01]} c5 {[%emt 0:00:16]} 2. Nf3 {[%emt 0:00:19]} e6 {[%emt 0:00:29]} 3. d4 {[%emt 0:00:31]} cxd4 {[%emt 0:00:30]} 4. Nxd4 {[%emt 0:00:13]} Nc6 {[%emt 0:00:27]} 5. Nc3 {[%emt 0:00:37]} Qc7 {[%emt 0:00:28]} 6. Be3 {[%emt 0:01:47]} Nf6 {[%emt 0:00:40]} 7. Be2 {[%emt 0:01:36]} Be7 {[%emt 0:00:50]} 8. O-O {[%emt 0:01:14]} O-O {[%emt 0:00:46]} 9. Ndb5 {[%emt 0:00:31]} Qb8 {[%emt 0:00:32]} 10. Qd2 {[%emt 0:01:51]} a6 {[%emt 0:00:58]} 11. Nd4 {[%emt 0:00:37]} b5 {[%emt 0:01:05]} 12. Nxc6 {[%emt 0:02:24]} dxc6 {[%emt 0:00:32]} 13. Rad1 {[%emt 0:00:26]} Bb7 {[%emt 0:01:35]} 14. f4 {[%emt 0:00:50]} c5 {[%emt 0:02:12]} 15. e5 {[%emt 0:00:35]} Nd5 {[%emt 0:00:41]} 16. Nxd5 {[%emt 0:00:38]} Bxd5 {[%emt 0:00:41]} 17. Bf3 {[%emt 0:00:12]} Rd8 {[%emt 0:00:37]} 18. Qf2 {[%emt 0:00:46]} Bxf3 {[%emt 0:01:27]} 19. Qxf3 {[%emt 0:00:10]} Qc7 {[%emt 0:00:51]} 20. Rxd8+ {[%emt 0:00:45]} Rxd8 {[%emt 0:00:42]} 21. Rd1 {[%emt 0:00:36]} h6 {[%emt 0:00:58]} 22. Rxd8+ {[%emt 0:01:26]} Qxd8 {[%emt 0:00:37]} 23. Qe2 {[%emt 0:00:20]} c4 {[%emt 0:00:56]} 24. Qd2 {[%emt 0:00:21]} Qxd2 {[%emt 0:00:46]} 25. Bxd2 {[%emt 0:00:01]} h5 {[%emt 0:03:48]} 26. Kf2 {[%emt 0:00:21]} Kf8 {[%emt 0:01:24]} 27. a3 {[%emt 0:00:55]} Ke8 {[%emt 0:02:12]} 28. Bb4 {[%emt 0:00:30]} Bd8 {[%emt 0:06:21]} 29. Bc5 {[%emt 0:01:00]} Kd7 {[%emt 0:10:30]} 30. Ke3 {[%emt 0:01:32]} Kc6 {[%emt 0:00:43] normal} 31. Kd4 {[%emt 0:00:56] normal} 1/2-1/2

[Event "DVM U10 2019"]
[Site "Magedburg"]
[Date "2019.12.29"]
[Round "7"]
[White "Conrad, Marius"]
[Black "Lu, Yunong Elias"]
[Result "0-1"]
[ECO "C54"]
[WhiteElo "1411"]
[BlackElo "1397"]
[Annotator "NA"]
[PlyCount "124"]
[EventDate "2019.12.27"]
[EventType "team-tourn"]
[EventRounds "7"]
[EventCountry "GER"]
[SourceTitle "playchess.com"]
[Source "ChessBase"]
[SourceQuality "1"]
[TimeControl "3300+5"]

1. e4 {[%emt 0:00:00]} e5 {[%emt 0:00:11]} 2. Nf3 {[%emt 0:00:09]} Nc6 {[%emt 0:00:26]} 3. Bc4 {[%emt 0:00:08]} Bc5 {[%emt 0:00:23]} 4. c3 {[%emt 0:00:07]} Nf6 {[%emt 0:00:18]} 5. d3 {[%emt 0:00:15]} d6 {[%emt 0:00:29]} 6. a4 {[%emt 0:00:05]} a6 {[%emt 0:00:16]} 7. Na3 {[%emt 0:00:12]} O-O {[%emt 0:00:47]} 8. O-O {[%emt 0:00:06]} Be6 {[%emt 0:00:16]} 9. Ba2 {[%emt 0:00:28]} h6 {[%emt 0:00:51]} 10. Nc2 {[%emt 0:00:11]} Qd7 {[%emt 0:00:21]} 11. Be3 {[%emt 0:00:13]} Ba7 {[%emt 0:00:14]} 12. Qd2 {[%emt 0:00:19]} Ng4 {[%emt 0:00:09]} 13. Rfe1 {[%emt 0:00:53]} Nxe3 {[%emt 0:00:55]} 14. Nxe3 {[%emt 0:00:12]} Ne7 {[%emt 0:00:47]} 15. d4 {[%emt 0:02:33]} Ng6 {[%emt 0:01:12]} 16. Red1 {[%emt 0:05:45]} Bxa2 {[%emt 0:00:40]} 17. Rxa2 {[%emt 0:00:32]} Qe6 {[%emt 0:00:14]} 18. Raa1 {[%emt 0:00:19]} exd4 {[%emt 0:01:11]} 19. cxd4 {[%emt 0:04:25]} Qxe4 {[%emt 0:00:23]} 20. Rac1 {[%emt 0:00:59]} Rac8 {[%emt 0:00:37]} 21. Rc4 {[%emt 0:02:48]} Qe6 {[%emt 0:00:22]} 22. Qb4 {[%emt 0:02:45]} b6 {[%emt 0:02:08]} 23. Rdc1 {[%emt 0:01:13]} c5 {[%emt 0:00:20]} 24. Qa3 {[%emt 0:02:03]} cxd4 {[%emt 0:00:50]} 25. Rxc8 {[%emt 0:01:17]} Rxc8 {[%emt 0:00:08]} 26. Rxc8+ {[%emt 0:00:23]} Qxc8 {[%emt 0:00:14]} 27. Nxd4 {[%emt 0:00:23]} Qc5 {[%emt 0:00:30]} 28. Qxc5 {[%emt 0:00:47]} bxc5 {[%emt 0:00:32]} 29. Ndf5 {[%emt 0:00:32]} Bb8 {[%emt 0:00:53]} 30. Nc4 {[%emt 0:00:30]} d5 {[%emt 0:00:04]} 31. Nce3 {[%emt 0:01:53]} d4 {[%emt 0:00:23]} 32. Nc4 {[%emt 0:00:14]} Kf8 {[%emt 0:01:02]} 33. Kf1 {[%emt 0:00:13]} Ne7 {[%emt 0:00:16]} 34. Ng3 {[%emt 0:00:25]} Bxg3 {[%emt 0:00:15]} 35. fxg3 {[%emt 0:00:14]} Nd5 {[%emt 0:01:38]} 36. Ke2 {[%emt 0:00:11]} Ke7 {[%emt 0:00:03]} 37. Kd3 {[%emt 0:00:08]} Ke6 {[%emt 0:00:14]} 38. Ke4 {[%emt 0:01:08]} f5+ {[%emt 0:00:14]} 39. Kd3 {[%emt 0:00:21]} f4 {[%emt 0:00:27]} 40. gxf4 {[%emt 0:00:36]} Nxf4+ {[%emt 0:00:10]} 41. Ke4 {[%emt 0:00:17]} Nxg2 {[%emt 0:00:07]} 42. Na5 {[%emt 0:01:01]} Kd6 {[%emt 0:01:50]} 43. Kd3 {[%emt 0:01:58]} Kd5 {[%emt 0:00:13]} 44. b3 {[%emt 0:00:49]} Ne1+ {[%emt 0:00:45]} 45. Ke2 {[%emt 0:00:27]} Nc2 {[%emt 0:00:10]} 46. Kd2 {[%emt 0:00:45]} Ne3 {[%emt 0:01:40]} 47. Kd3 {[%emt 0:01:14]} g5 {[%emt 0:00:23]} 48. Ke2 {[%emt 0:00:24]} g4 {[%emt 0:01:31]} 49. Kf2 {[%emt 0:00:36]} h5 {[%emt 0:00:11]} 50. Ke2 {[%emt 0:00:35]} h4 {[%emt 0:00:56]} 51. Kf2 {[%emt 0:00:14]} g3+ {[%emt 0:00:25]} 52. hxg3 {[%emt 0:00:30]} hxg3+ {[%emt 0:00:27]} 53. Kxg3 {[%emt 0:00:46]} d3 {[%emt 0:00:50]} 54. Nc4 {[%emt 0:00:22]} Nxc4 {[%emt 0:00:30]} 55. Kf2 {[%emt 0:00:27]} Nb2 {[%emt 0:00:26]} 56. Ke3 {[%emt 0:00:16]} a5 {[%emt 0:01:23]} 57. Kd2 {[%emt 0:00:27]} Kd4 {[%emt 0:00:24]} 58. Kc1 Nd1 {[%emt 0:00:36]} 59. Kxd1 {[%emt 0:00:41]} Kc3 {[%emt 0:00:03]} 60. Kc1 {[%emt 0:00:27]} d2+ {[%emt 0:00:05]} 61. Kd1 {[%emt 0:00:09]} Kd3 {[%emt 0:00:59]} 62. b4 {[%emt 0:00:13]} c4 {normal} 0-1

[Event "DVM U10 2019"]
[Site "Magedburg"]
[Date "2019.12.29"]
[Round "7"]
[White "Wartenberg, Alissa"]
[Black "Nönnig, Jakob"]
[Result "1-0"]
[ECO "C47"]
[WhiteElo "1361"]
[BlackElo "1153"]
[Annotator "NA"]
[PlyCount "139"]
[EventDate "2019.12.27"]
[EventType "team-tourn"]
[EventRounds "7"]
[EventCountry "GER"]
[SourceTitle "playchess.com"]
[Source "ChessBase"]
[SourceQuality "1"]
[TimeControl "3300+5"]

1. e4 {[%emt 0:00:00]} e5 {[%emt 0:00:00]} 2. Nf3 {[%emt 0:00:01]} Nc6 {[%emt 0:00:06]} 3. Nc3 {[%emt 0:00:04]} Nf6 {[%emt 0:00:15]} 4. d4 {[%emt 0:00:06]} exd4 {[%emt 0:00:10]} 5. Nxd4 {[%emt 0:00:04]} Qe7 {[%emt 0:01:04]} 6. Nxc6 {[%emt 0:00:58]} dxc6 {[%emt 0:00:20]} 7. Bg5 {[%emt 0:00:57]} Bf5 {[%emt 0:00:36]} 8. Bxf6 {[%emt 0:00:39]} gxf6 {[%emt 0:00:12]} 9. Qf3 {[%emt 0:04:11]} Bd7 {[%emt 0:00:37]} 10. O-O-O {[%emt 0:00:55]} O-O-O {[%emt 0:00:09]} 11. Qe3 {[%emt 0:00:17]} b6 {[%emt 0:01:24]} 12. Ba6+ {[%emt 0:00:17]} Kb8 {[%emt 0:00:28]} 13. Bd3 {[%emt 0:01:57]} Be6 {[%emt 0:01:53]} 14. f4 {[%emt 0:01:27]} Bh6 {[%emt 0:00:57]} 15. Qf2 {[%emt 0:01:38]} Bg4 {[%emt 0:01:24]} 16. Rdf1 {[%emt 0:01:22]} Rhg8 {[%emt 0:01:33]} 17. Qh4 {[%emt 0:02:01]} Qf8 {[%emt 0:09:36]} 18. Qxf6 {[%emt 0:02:43]} Bd7 {[%emt 0:00:27]} 19. Rhg1 {[%emt 0:00:46]} Rg6 {[%emt 0:00:51]} 20. Qh4 {[%emt 0:00:17]} f6 {[%emt 0:02:34]} 21. h3 {[%emt 0:02:17]} Re8 {[%emt 0:03:01]} 22. Kb1 {[%emt 0:01:38]} Rg8 {[%emt 0:01:19]} 23. e5 {[%emt 0:02:15]} f5 {[%emt 0:00:47]} 24. Bc4 {[%emt 0:00:50]} Be6 {[%emt 0:00:44]} 25. Bxe6 {[%emt 0:01:38]} Rxe6 {[%emt 0:00:13]} 26. Qf2 {[%emt 0:01:16]} Qf7 {[%emt 0:00:49]} 27. Qe2 {[%emt 0:00:57]} Bf8 {[%emt 0:00:37]} 28. Rd1 {[%emt 0:02:14]} Bh6 {[%emt 0:00:46]} 29. Qf3 {[%emt 0:01:25]} Qe7 {[%emt 0:01:28]} 30. Rd3 {[%emt 0:01:43]} Rd8 {[%emt 0:00:34]} 31. Rxd8+ {[%emt 0:00:30]} Qxd8 {[%emt 0:00:20]} 32. Rd1 {[%emt 0:01:52]} Qh4 {[%emt 0:01:19]} 33. g3 {[%emt 0:00:45]} Qxh3 {[%emt 0:00:47]} 34. Rh1 {[%emt 0:00:11]} Qg4 {[%emt 0:00:42]} 35. Qxg4 {[%emt 0:00:26]} fxg4 {[%emt 0:00:14]} 36. a3 {[%emt 0:00:42]} Bf8 {[%emt 0:01:21]} 37. Rxh7 {[%emt 0:00:18]} Re8 {[%emt 0:00:49]} 38. Rh8 {[%emt 0:00:54]} Kc8 {[%emt 0:00:17]} 39. Ne4 {[%emt 0:00:41]} c5 {[%emt 0:01:00]} 40. Rg8 {[%emt 0:01:27]} a5 {[%emt 0:00:44]} 41. Nf6 {[%emt 0:00:10]} Rd8 {[%emt 0:00:17]} 42. Nxg4 {[%emt 0:00:17]} Be7 {[%emt 0:00:17]} 43. Rxd8+ {[%emt 0:00:09]} Kxd8 {[%emt 0:00:11]} 44. Nf6 {[%emt 0:00:45]} Bf8 {[%emt 0:00:44]} 45. g4 {[%emt 0:00:21]} Bg7 {[%emt 0:00:19]} 46. g5 {[%emt 0:00:04]} Ke7 {[%emt 0:00:05]} 47. Nh5 {[%emt 0:00:15]} Bf8 {[%emt 0:00:22]} 48. g6 {[%emt 0:00:34]} Ke6 {[%emt 0:00:34]} 49. g7 {[%emt 0:00:05]} Bxg7 {[%emt 0:00:07]} 50. Nxg7+ {[%emt 0:00:06]} Kf7 {[%emt 0:00:08]} 51. Nf5 {[%emt 0:00:10]} Kg6 {[%emt 0:00:15]} 52. Ne3 {[%emt 0:00:05]} c6 {[%emt 0:00:18]} 53. f5+ {[%emt 0:00:09]} Kf7 {[%emt 0:00:08]} 54. e6+ {[%emt 0:00:09]} Ke7 {[%emt 0:00:09]} 55. Ng4 {[%emt 0:00:07]} Kf8 {[%emt 0:00:16]} 56. f6 {[%emt 0:00:06]} b5 {[%emt 0:00:23]} 57. e7+ {[%emt 0:00:15]} Ke8 {[%emt 0:00:06]} 58. Ne5 {[%emt 0:00:05]} c4 {[%emt 0:00:21]} 59. Nxc6 {[%emt 0:00:08]} a4 {[%emt 0:00:16]} 60. Nd4 {[%emt 0:00:06]} b4 {[%emt 0:00:20]} 61. Nf5 {[%emt 0:00:16]} bxa3 {[%emt 0:00:20]} 62. Nd6+ {[%emt 0:00:13]} Kd7 {[%emt 0:00:25]} 63. e8=Q+ {[%emt 0:00:14]} Kxd6 {[%emt 0:00:11]} 64. f7 {[%emt 0:00:21]} axb2 {[%emt 0:00:13]} 65. f8=Q+ {[%emt 0:00:08]} Kd5 {[%emt 0:00:16]} 66. Qfe7 {[%emt 0:00:05]} a3 {[%emt 0:00:17]} 67. Q8d8+ {[%emt 0:00:04]} Kc6 {[%emt 0:00:32]} 68. Qec7+ {[%emt 0:00:02]} Kb5 {[%emt 0:00:19]} 69. Qdb8+ {[%emt 0:00:02]} Ka4 {[%emt 0:00:27]} 70. Qca7# {[%emt 0:00:08] normal} 1-0

[Event "DVM U10 2019"]
[Site "Magedburg"]
[Date "2019.12.29"]
[Round "7"]
[White "Gärtner, Alessandro"]
[Black "Haubold, Christian Lucas"]
[Result "1/2-1/2"]
[ECO "E61"]
[WhiteElo "1251"]
[BlackElo "1471"]
[Annotator "NA"]
[PlyCount "123"]
[EventDate "2019.12.27"]
[EventType "team-tourn"]
[EventRounds "7"]
[EventCountry "GER"]
[SourceTitle "playchess.com"]
[Source "ChessBase"]
[SourceQuality "1"]
[TimeControl "3300+5"]

1. d4 {[%emt 0:00:00]} Nf6 {[%emt 0:00:03]} 2. c4 {[%emt 0:00:00]} g6 {[%emt 0:01:12]} 3. Nc3 {[%emt 0:00:00]} Bg7 {[%emt 0:00:31]} 4. Bf4 {[%emt 0:00:11]} O-O {[%emt 0:00:18]} 5. e3 {[%emt 0:00:05]} d6 {[%emt 0:00:15]} 6. h3 {[%emt 0:00:10]} Nc6 {[%emt 0:02:02]} 7. Nf3 {[%emt 0:00:19]} Nd7 {[%emt 0:02:38]} 8. Bh2 {[%emt 0:01:01]} e5 {[%emt 0:01:34]} 9. d5 {[%emt 0:01:30]} Ne7 {[%emt 0:00:39]} 10. e4 {[%emt 0:00:22]} f5 {[%emt 0:01:26]} 11. Bd3 {[%emt 0:00:09]} Nf6 {[%emt 0:00:54]} 12. Qc2 {[%emt 0:00:35]} fxe4 {[%emt 0:02:46]} 13. Nxe4 {[%emt 0:00:18]} Bf5 {[%emt 0:01:35]} 14. O-O-O {[%emt 0:01:35]} a5 {[%emt 0:01:23]} 15. g4 {[%emt 0:01:19]} Nxg4 {[%emt 0:08:17]} 16. hxg4 {[%emt 0:00:37]} Bxg4 {[%emt 0:00:08]} 17. Neg5 {[%emt 0:01:37]} Bxf3 {[%emt 0:04:01]} 18. Ne6 {[%emt 0:00:40]} Bxd1 {[%emt 0:00:47]} 19. Qxd1 {[%emt 0:00:25]} Qc8 {[%emt 0:00:31]} 20. Nxf8 {[%emt 0:00:15]} Qxf8 {[%emt 0:00:10]} 21. Bg3 {[%emt 0:00:16]} Bh6+ {[%emt 0:01:22]} 22. Kb1 {[%emt 0:00:14]} Qg7 {[%emt 0:01:06]} 23. Qg4 {[%emt 0:00:36]} Rd8 {[%emt 0:01:29]} 24. Qe6+ {[%emt 0:00:45]} Kf8 {[%emt 0:02:12]} 25. Bh4 {[%emt 0:02:31]} Re8 {[%emt 0:03:09]} 26. Bf6 {[%emt 0:00:37]} Qf7 {[%emt 0:01:39]} 27. Qxf7+ {[%emt 0:01:01]} Kxf7 {[%emt 0:00:12]} 28. Bxe7 {[%emt 0:00:02]} Rxe7 {[%emt 0:00:10]} 29. Rxh6 {[%emt 0:01:28]} Kg7 {[%emt 0:00:06]} 30. Rh3 {[%emt 0:00:29]} Rf7 {[%emt 0:00:13]} 31. f3 {[%emt 0:00:22]} Rf4 {[%emt 0:00:15]} 32. Kc2 {[%emt 0:00:06]} h6 {[%emt 0:00:30]} 33. Rg3 {[%emt 0:00:27]} g5 {[%emt 0:00:09]} 34. Be4 {[%emt 0:00:21]} Rh4 {[%emt 0:00:50]} 35. a3 {[%emt 0:00:44]} Rh2+ {[%emt 0:00:20]} 36. Kc3 {[%emt 0:00:10]} Rf2 {[%emt 0:00:26]} 37. b4 {[%emt 0:00:26]} axb4+ {[%emt 0:00:07]} 38. axb4 {[%emt 0:00:06]} Ra2 {[%emt 0:00:12]} 39. Kb3 {[%emt 0:00:07]} Ra1 {[%emt 0:00:31]} 40. c5 {[%emt 0:00:59]} Rc1 {[%emt 0:01:16]} 41. cxd6 {[%emt 0:00:33]} cxd6 {[%emt 0:00:06]} 42. Rg2 {[%emt 0:00:11]} Kf6 {[%emt 0:00:34]} 43. Rh2 {[%emt 0:00:16]} Kg7 {[%emt 0:00:12]} 44. Rc2 Rxc2 {[%emt 0:00:23]} 45. Kxc2 {[%emt 0:00:24]} Kf6 {[%emt 0:00:14]} 46. Kd2 {[%emt 0:00:30]} h5 {[%emt 0:00:20]} 47. Ke2 {[%emt 0:00:28]} Ke7 {[%emt 0:00:55]} 48. Kf2 {[%emt 0:00:54]} Kd7 {[%emt 0:00:16]} 49. Kg3 {[%emt 0:00:02]} Kc7 {[%emt 0:00:19]} 50. Bg6 {[%emt 0:00:24]} h4+ {[%emt 0:00:08]} 51. Kg4 {[%emt 0:00:01]} Kb6 {[%emt 0:00:12]} 52. Bd3 {[%emt 0:00:22]} Ka7 {[%emt 0:00:18]} 53. Bf5 {[%emt 0:00:28]} Kb6 {[%emt 0:00:05]} 54. Kxg5 {[%emt 0:00:15]} Kb5 {[%emt 0:00:11]} 55. Kxh4 {[%emt 0:00:19]} Kxb4 {[%emt 0:00:08]} 56. Kg5 {[%emt 0:00:15]} Kc5 {[%emt 0:00:09]} 57. Be4 {[%emt 0:00:10]} b5 {[%emt 0:00:14]} 58. Kf5 {[%emt 0:00:19]} b4 {[%emt 0:00:58]} 59. f4 {[%emt 0:00:32]} exf4 {[%emt 0:00:11]} 60. Kxf4 {[%emt 0:00:07]} b3 {[%emt 0:00:02]} 61. Kf5 {[%emt 0:00:53]} Kd4 {[%emt 0:00:18]} 62. Kf4 {[%emt 0:00:53] normal Ke5+} 1/2-1/2

[Event "DVM U10 2019"]
[Site "Magedburg"]
[Date "2019.12.29"]
[Round "7"]
[White "Wendrich, Finn"]
[Black "Zobel, Christian"]
[Result "0-1"]
[ECO "C47"]
[WhiteElo "1173"]
[BlackElo "1450"]
[Annotator "NA"]
[PlyCount "70"]
[EventDate "2019.12.27"]
[EventType "team-tourn"]
[EventRounds "7"]
[EventCountry "GER"]
[SourceTitle "playchess.com"]
[Source "ChessBase"]
[SourceQuality "1"]
[TimeControl "3300+5"]

1. e4 {[%emt 0:00:00]} e5 {[%emt 0:00:00]} 2. Nf3 {[%emt 0:00:06]} Nf6 {[%emt 0:00:04]} 3. Nc3 {[%emt 0:00:09]} Nc6 {[%emt 0:00:06]} 4. d4 {[%emt 0:00:07]} exd4 {[%emt 0:00:33]} 5. Nxd4 {[%emt 0:00:10]} Bb4 {[%emt 0:01:23]} 6. Nxc6 {[%emt 0:00:12]} bxc6 {[%emt 0:00:04]} 7. Bd3 {[%emt 0:00:14]} d5 {[%emt 0:01:02]} 8. exd5 {[%emt 0:00:10]} cxd5 {[%emt 0:00:03]} 9. O-O {[%emt 0:00:20]} O-O {[%emt 0:01:01]} 10. h3 {[%emt 0:00:06]} Re8 {[%emt 0:01:46]} 11. Qf3 {[%emt 0:00:28]} h6 {[%emt 0:02:43]} 12. Bd2 {[%emt 0:03:36]} Be6 {[%emt 0:01:17]} 13. Rad1 {[%emt 0:01:29]} c6 {[%emt 0:02:52]} 14. Ne2 {[%emt 0:01:14]} Bxd2 {[%emt 0:02:05]} 15. Rxd2 {[%emt 0:00:14]} Qa5 {[%emt 0:00:24]} 16. Nc3 {[%emt 0:02:10]} d4 {[%emt 0:01:08]} 17. Qxc6 {[%emt 0:02:48]} dxc3 {[%emt 0:00:06]} 18. bxc3 Rac8 {[%emt 0:00:58]} 19. Qf3 {[%emt 0:02:12]} Qxc3 {[%emt 0:02:06]} 20. Rfd1 {[%emt 0:01:06]} Qa5 {[%emt 0:01:08]} 21. Qe2 {[%emt 0:00:52]} Bg4 {[%emt 0:00:37]} 22. Qf1 {[%emt 0:00:28]} Bxd1 {[%emt 0:00:06]} 23. Qxd1 {[%emt 0:00:08]} Rcd8 {[%emt 0:01:39]} 24. Qc1 {[%emt 0:01:20]} Ne4 {[%emt 0:01:29]} 25. Re2 {[%emt 0:00:34]} Nc3 {[%emt 0:00:21]} 26. Rxe8+ {[%emt 0:00:43]} Rxe8 {[%emt 0:00:06]} 27. Kh1 {[%emt 0:00:29]} Nxa2 {[%emt 0:00:25]} 28. Qa1 {[%emt 0:00:32]} Re1+ {[%emt 0:00:04]} 29. Qxe1 {[%emt 0:00:03]} Qxe1+ {[%emt 0:00:04]} 30. Kh2 {[%emt 0:00:06]} Qxf2 {[%emt 0:00:09]} 31. Be4 {[%emt 0:00:17]} Nc3 {[%emt 0:00:08]} 32. Bf3 {[%emt 0:00:12]} Qxc2 {[%emt 0:00:09]} 33. Kg3 {[%emt 0:00:07]} a5 {[%emt 0:00:08]} 34. Kg4 {[%emt 0:00:06]} Qg6+ {[%emt 0:00:15]} 35. Kf4 {[%emt 0:00:19]} Qg5# {[%emt 0:00:18] normal} 0-1

[Event "DVM U10 2019"]
[Site "Magedburg"]
[Date "2019.12.29"]
[Round "7"]
[White "Goldschmidt, Jakob"]
[Black "Bangiev, Katharina"]
[Result "0-1"]
[ECO "A41"]
[WhiteElo "1132"]
[BlackElo "1239"]
[Annotator "NA"]
[PlyCount "50"]
[EventDate "2019.12.27"]
[EventType "team-tourn"]
[EventRounds "7"]
[EventCountry "GER"]
[SourceTitle "playchess.com"]
[Source "ChessBase"]
[SourceQuality "1"]
[TimeControl "3300+5"]

1. d4 {[%emt 0:00:00]} d6 {[%emt 0:00:00]} 2. Nf3 {[%emt 0:00:03]} g6 {[%emt 0:00:07]} 3. Bf4 {[%emt 0:00:10]} Bg7 {[%emt 0:00:11]} 4. e3 {[%emt 0:00:13]} Nf6 {[%emt 0:00:09]} 5. Bd3 {[%emt 0:00:09]} O-O {[%emt 0:00:09]} 6. O-O {[%emt 0:00:12]} Nc6 {[%emt 0:00:07]} 7. c3 {[%emt 0:00:28]} Bg4 {[%emt 0:00:24]} 8. h3 {[%emt 0:00:32]} Bxf3 {[%emt 0:00:11]} 9. Qxf3 {[%emt 0:00:16]} e5 {[%emt 0:00:41]} 10. Bg3 Re8 {[%emt 0:00:38]} 11. Qd1 {[%emt 0:01:30]} e4 {[%emt 0:00:05]} 12. Bc2 {[%emt 0:00:56]} d5 {[%emt 0:00:19]} 13. Nd2 {[%emt 0:00:54]} Nh5 {[%emt 0:01:12]} 14. Bh2 {[%emt 0:00:43]} f5 {[%emt 0:00:16]} 15. Ba4 {[%emt 0:03:17]} Rf8 {[%emt 0:01:40]} 16. c4 {[%emt 0:03:21]} dxc4 {[%emt 0:04:23]} 17. Nxc4 {[%emt 0:00:14]} f4 18. Qd2 {[%emt 0:01:00]} f3 {[%emt 0:01:41]} 19. gxf3 {[%emt 0:00:35]} exf3 {[%emt 0:00:37]} 20. Bb3 {[%emt 0:00:33]} Qg5+ {[%emt 0:00:31]} 21. Bg3 {[%emt 0:00:36]} Nxg3 {[%emt 0:00:45]} 22. fxg3 {[%emt 0:00:30]} Qxg3+ {[%emt 0:00:09]} 23. Kh1 {[%emt 0:00:22]} f2 {[%emt 0:01:34]} 24. Nb6+ {[%emt 0:00:17]} Kh8 {[%emt 0:00:15]} 25. Nxa8 {[%emt 0:00:10]} Qxh3# {[%emt 0:00:10] normal} 0-1

[Event "DVM U10 2019"]
[Site "Magedburg"]
[Date "2019.12.29"]
[Round "7"]
[White "Schmidt, Anton"]
[Black "Ebers, Frederik"]
[Result "1-0"]
[ECO "A48"]
[WhiteElo "1090"]
[BlackElo "1125"]
[Annotator "NA"]
[PlyCount "101"]
[EventDate "2019.12.27"]
[EventType "team-tourn"]
[EventRounds "7"]
[EventCountry "GER"]
[SourceTitle "playchess.com"]
[Source "ChessBase"]
[SourceQuality "1"]
[TimeControl "3300+5"]

1. d4 {[%emt 0:00:00]} Nf6 2. Bf4 g6 {[%emt 0:00:25]} 3. Nf3 {[%emt 0:00:11]} Bg7 {[%emt 0:00:13]} 4. g3 {[%emt 0:00:10]} O-O {[%emt 0:00:14]} 5. Bg2 {[%emt 0:00:10]} d6 {[%emt 0:00:09]} 6. O-O {[%emt 0:00:12]} Nbd7 7. Nc3 {[%emt 0:00:12]} b6 {[%emt 0:01:25]} 8. e3 {[%emt 0:00:30]} Bb7 {[%emt 0:00:07]} 9. Re1 {[%emt 0:00:39]} c5 {[%emt 0:00:51]} 10. e4 {[%emt 0:02:22]} Re8 {[%emt 0:01:05]} 11. d5 {[%emt 0:00:55]} e5 {[%emt 0:00:27]} 12. Be3 {[%emt 0:00:34]} Qc7 {[%emt 0:02:22]} 13. b3 {[%emt 0:00:49]} a5 {[%emt 0:01:08]} 14. Bc1 {[%emt 0:00:43]} Ba6 {[%emt 0:02:43]} 15. Bb2 {[%emt 0:00:30]} b5 {[%emt 0:00:45]} 16. Nb1 {[%emt 0:00:34]} Rab8 {[%emt 0:00:19]} 17. Bf1 {[%emt 0:01:13]} c4 {[%emt 0:02:13]} 18. Nc3 {[%emt 0:03:23]} Nc5 {[%emt 0:00:59]} 19. bxc4 bxc4 20. Ba3 {[%emt 0:02:03]} Qd7 {[%emt 0:05:24]} 21. Nd2 {[%emt 0:03:29]} Na4 {[%emt 0:00:56]} 22. Nxa4 {[%emt 0:01:38]} Qxa4 {[%emt 0:03:14]} 23. Bxd6 {[%emt 0:00:33]} Rb6 {[%emt 0:01:01]} 24. Bc5 {[%emt 0:00:30]} Rb5 {[%emt 0:00:25]} 25. Bd6 {[%emt 0:01:42]} Rb6 {[%emt 0:00:17]} 26. Bc7 {[%emt 0:00:30]} Rb7 {[%emt 0:00:43]} 27. Bd6 {[%emt 0:00:58]} Rd7 {[%emt 0:01:55]} 28. Bc5 {[%emt 0:00:39]} Rc7 {[%emt 0:02:49]} 29. Bd6 {[%emt 0:01:27]} Rd7 {[%emt 0:00:17]} 30. Bc5 {[%emt 0:00:29]} Rc7 {[%emt 0:01:28]} 31. Be3 {[%emt 0:00:24]} c3 {[%emt 0:00:11]} 32. Bxa6 cxd2 33. Bxd2 {[%emt 0:03:32]} Rxc2 {[%emt 0:00:33]} 34. Bd3 {[%emt 0:01:12]} Rxa2 {[%emt 0:00:37]} 35. Qxa4 {[%emt 0:00:14]} Rxa4 {[%emt 0:00:12]} 36. Rxa4 {[%emt 0:00:09]} Ng4 {[%emt 0:00:32]} 37. Rxa5 {[%emt 0:00:38]} Bf8 {[%emt 0:00:38]} 38. Be2 {[%emt 0:00:43]} Nf6 {[%emt 0:00:11]} 39. Bf3 {[%emt 0:00:10]} Nd7 {[%emt 0:00:14]} 40. Bd1 {[%emt 0:00:44]} Nb6 41. Ba4 Rc8 {[%emt 0:01:07]} 42. Rc1 {[%emt 0:01:03]} Nc4 {[%emt 0:00:54]} 43. Bb5 {[%emt 0:00:47]} Nxa5 {[%emt 0:01:19]} 44. Rxc8 {[%emt 0:00:30]} Nb3 {[%emt 0:00:11]} 45. Bb4 {[%emt 0:00:17]} Nd4 {[%emt 0:00:47]} 46. Rxf8+ {[%emt 0:00:14]} Kg7 {[%emt 0:00:08]} 47. Bc6 {[%emt 0:00:36]} Nf3+ {[%emt 0:00:26]} 48. Kg2 {[%emt 0:00:18]} Ne1+ {[%emt 0:00:22]} 49. Bxe1 {[%emt 0:00:12]} Kxf8 {[%emt 0:00:07]} 50. Bb4+ {[%emt 0:00:25]} Kg7 {[%emt 0:00:07]} 51. d6 {[%emt 0:00:22] normal} 1-0